[Event "8th RTU Open 2018"]
[Site "Riga"]
[Date "2018.08.06"]
[Round "1"]
[White "Fenil, Shah"]
[Black "Lahav, Michal"]
[Result "1-0"]
[ECO "A45"]
[WhiteElo "2412"]
[BlackElo "2131"]
[Annotator "NA"]
[PlyCount "21"]
[EventDate "2018.08.06"]
[EventType "swiss"]
[EventCountry "LAT"]
[SourceTitle "playchess.com"]
[Source "ChessBase"]
[SourceQuality "1"]
[TimeControl "5400+30"]

1. d4 Nf6 2. Nc3 e6 3. Bf4 Be7 4. Nf3 O-O 5. e4 d5 6. Bd3 b6 7. h4 Ba6 8. e5 Nfd7 9. Bxh7+ Kh8 10. Ng5 g6 11. Qg4 1-0

[Event "8th RTU Open 2018"]
[Site "Riga"]
[Date "2018.08.06"]
[Round "1"]
[White "Wenninger, Philipp"]
[Black "Valantiejus, Vaidotas"]
[Result "1-0"]
[ECO "D34"]
[WhiteElo "2408"]
[BlackElo "2128"]
[Annotator "NA"]
[PlyCount "121"]
[EventDate "2018.08.06"]
[EventType "swiss"]
[EventCountry "LAT"]
[SourceTitle "playchess.com"]
[Source "ChessBase"]
[SourceQuality "1"]
[TimeControl "5400+30"]

1. d4 {[%emt 0:00:00]} d5 {[%emt 0:00:00]} 2. c4 {[%emt 0:00:00]} e6 {[%emt 0:02:52]} 3. Nc3 {[%emt 0:00:00]} c5 {[%emt 0:00:16]} 4. cxd5 {[%emt 0:00:05]} exd5 {[%emt 0:00:06]} 5. Nf3 {[%emt 0:00:52]} Nc6 {[%emt 0:04:07]} 6. g3 {[%emt 0:00:09]} Nf6 {[%emt 0:00:15]} 7. Bg2 {[%emt 0:00:07]} Be7 {[%emt 0:00:09]} 8. O-O {[%emt 0:00:28]} O-O {[%emt 0:00:06]} 9. Bg5 {[%emt 0:03:22]} c4 {[%emt 0:01:33]} 10. Ne5 {[%emt 0:03:20]} Be6 {[%emt 0:00:13]} 11. Rc1 {[%emt 0:05:47]} h6 {[%emt 0:03:07]} 12. Bf4 {[%emt 0:03:00]} Rc8 {[%emt 0:03:29]} 13. Nxc6 {[%emt 0:10:27]} Rxc6 {[%emt 0:01:14]} 14. e4 {[%emt 0:03:26]} dxe4 {[%emt 0:06:51]} 15. Nxe4 {[%emt 0:00:35]} Nxe4 {[%emt 0:01:52]} 16. Bxe4 {[%emt 0:00:05]} Bd5 {[%emt 0:00:23]} 17. Qf3 {[%emt 0:02:54]} Bxe4 {[%emt 0:00:15]} 18. Qxe4 {[%emt 0:00:02]} Bg5 {[%emt 0:24:00]} 19. Bxg5 {[%emt 0:12:32]} Qxg5 {[%emt 0:00:24]} 20. h4 {[%emt 0:26:08]} Qb5 {[%emt 0:02:39]} 21. d5 {[%emt 0:06:15]} Rd6 {[%emt 0:02:14]} 22. Rxc4 {[%emt 0:03:56]} Rxd5 {[%emt 0:12:47]} 23. Rc7 {[%emt 0:02:17]} Rd7 {[%emt 0:03:28]} 24. Rc2 {[%emt 0:07:50]} Rfd8 {[%emt 0:02:28]} 25. Re1 {[%emt 0:01:47]} Rd4 {[%emt 0:02:20]} 26. Qe5 {[%emt 0:02:51]} Qxe5 {[%emt 0:03:37]} 27. Rxe5 {[%emt 0:00:02]} Rd2 {[%emt 0:00:40]} 28. Re2 {[%emt 0:00:56]} Rxe2 {[%emt 0:00:43]} 29. Rxe2 {[%emt 0:00:03]} Kf8 {[%emt 0:00:27]} 30. Kg2 {[%emt 0:00:07]} h5 {[%emt 0:00:42]} 31. Kf3 {[%emt 0:00:49]} g6 {[%emt 0:00:33]} 32. Rc2 {[%emt 0:00:52]} Rd7 {[%emt 0:00:20]} 33. Kf4 {[%emt 0:00:32]} f6 {[%emt 0:01:47]} 34. Ke4 {[%emt 0:00:50]} Kf7 {[%emt 0:01:55]} 35. a3 {[%emt 0:00:56]} a6 {[%emt 0:00:29]} 36. Rc3 {[%emt 0:01:24]} Ke6 {[%emt 0:01:14]} 37. Rb3 {[%emt 0:00:39]} b5 {[%emt 0:00:58]} 38. Rc3 {[%emt 0:00:34]} Rd6 {[%emt 0:00:17]} 39. Rc7 {[%emt 0:00:53]} f5+ {[%emt 0:02:02]} 40. Ke3 {[%emt 0:00:39]} Ke5 {[%emt 0:00:57]} 41. b3 {[%emt 0:00:52]} Kf6 {[%emt 0:00:46]} 42. a4 {[%emt 0:01:04]} bxa4 {[%emt 0:00:18]} 43. bxa4 {[%emt 0:00:01]} Ke5 {[%emt 0:02:34]} 44. Rc5+ {[%emt 0:00:31]} Ke6 {[%emt 0:00:30]} 45. a5 {[%emt 0:00:37]} Kd7 {[%emt 0:02:00]} 46. Kf4 {[%emt 0:01:06]} Rd2 {[%emt 0:06:53]} 47. Kg5 {[%emt 0:00:16]} Rxf2 {[%emt 0:00:49]} 48. Kxg6 {[%emt 0:00:11]} Rg2 {[%emt 0:03:03]} 49. Rxf5 {[%emt 0:00:39]} Rxg3+ {[%emt 0:00:05]} 50. Kxh5 {[%emt 0:00:46]} Kc6 {[%emt 0:00:54]} 51. Kh6 {[%emt 0:00:52]} Rh3 {[%emt 0:02:12]} 52. h5 {[%emt 0:00:07]} Rg3 {[%emt 0:01:26]} 53. Rg5 {[%emt 0:01:01]} Rd3 {[%emt 0:00:34]} 54. Rf5 {[%emt 0:00:11]} Rg3 {[%emt 0:00:08]} 55. Kh7 {[%emt 0:00:03]} Rg1 {[%emt 0:00:21]} 56. h6 {[%emt 0:00:07]} Rg2 {[%emt 0:00:20]} 57. Kh8 {[%emt 0:00:07]} Rg1 {[%emt 0:01:06]} 58. h7 {[%emt 0:00:04]} Rg2 {[%emt 0:00:12]} 59. Rf8 {[%emt 0:00:36]} Kb5 {[%emt 0:00:08]} 60. Rg8 {[%emt 0:00:05]} Rh2 {[%emt 0:00:20]} 61. Rg5+ {[%emt 0:00:05]} 1-0

[Event "8th RTU Open 2018"]
[Site "Riga"]
[Date "2018.08.06"]
[Round "1"]
[White "Seeman, Tarvo"]
[Black "Sarbay, Alexander"]
[Result "1-0"]
[ECO "A39"]
[WhiteElo "2405"]
[BlackElo "2122"]
[Annotator "NA"]
[PlyCount "117"]
[EventDate "2018.08.06"]
[EventType "swiss"]
[EventCountry "LAT"]
[SourceTitle "playchess.com"]
[Source "ChessBase"]
[SourceQuality "1"]
[TimeControl "5400+30"]

1. Nf3 {[%emt 0:00:00]} c5 {[%emt 0:00:29]} 2. c4 {[%emt 0:00:04]} Nf6 {[%emt 0:01:21]} 3. Nc3 {[%emt 0:00:10]} Nc6 {[%emt 0:01:50]} 4. g3 {[%emt 0:01:02]} g6 {[%emt 0:00:19]} 5. Bg2 {[%emt 0:00:07]} Bg7 {[%emt 0:00:05]} 6. O-O {[%emt 0:00:16]} O-O {[%emt 0:02:53]} 7. d4 {[%emt 0:00:04]} cxd4 {[%emt 0:00:16]} 8. Nxd4 {[%emt 0:00:04]} Nxd4 {[%emt 0:00:28]} 9. Qxd4 {[%emt 0:00:06]} d6 {[%emt 0:00:07]} 10. Qd2 {[%emt 0:01:09]} Be6 {[%emt 0:05:05]} 11. Bxb7 {[%emt 0:02:22]} Rb8 {[%emt 0:05:23]} 12. Bg2 {[%emt 0:00:08]} Bxc4 {[%emt 0:00:50]} 13. b3 {[%emt 0:00:15]} Nd5 {[%emt 0:09:48]} 14. Nxd5 {[%emt 0:00:39]} Bxd5 {[%emt 0:01:44]} 15. Bb2 {[%emt 0:00:06]} Bxb2 {[%emt 0:04:36]} 16. Qxb2 {[%emt 0:00:05]} Bxg2 {[%emt 0:00:54]} 17. Kxg2 {[%emt 0:00:04]} Qa5 {[%emt 0:01:42]} 18. Rac1 {[%emt 0:01:46]} Qd5+ {[%emt 0:01:46]} 19. f3 {[%emt 0:00:38]} Rfc8 {[%emt 0:01:51]} 20. Rxc8+ {[%emt 0:01:01]} Rxc8 {[%emt 0:00:05]} 21. Rc1 {[%emt 0:00:11]} Rxc1 {[%emt 0:06:09]} 22. Qxc1 {[%emt 0:00:06]} Qe5 {[%emt 0:00:36]} 23. Kf2 {[%emt 0:01:03]} Qh5 {[%emt 0:08:09]} 24. h4 {[%emt 0:01:15]} Qf5 {[%emt 0:01:24]} 25. Kg2 {[%emt 0:03:38]} Qe5 {[%emt 0:05:53]} 26. Qd2 {[%emt 0:00:24]} d5 {[%emt 0:03:26]} 27. b4 {[%emt 0:01:16]} d4 {[%emt 0:03:44]} 28. a4 {[%emt 0:07:08]} Qd5 {[%emt 0:01:36]} 29. Qc2 {[%emt 0:09:02]} f5 {[%emt 0:06:37]} 30. b5 {[%emt 0:04:55]} Kf7 {[%emt 0:04:07]} 31. Kf2 {[%emt 0:02:21]} Qd6 {[%emt 0:17:29]} 32. Qc4+ {[%emt 0:05:41]} e6 {[%emt 0:00:33]} 33. a5 {[%emt 0:05:49]} f4 {[%emt 0:01:55]} 34. g4 {[%emt 0:03:29]} Qd8 {[%emt 0:00:27]} 35. Kf1 {[%emt 0:05:24]} Qxa5 {[%emt 0:02:10]} 36. Qxd4 {[%emt 0:00:24]} Qxb5 {[%emt 0:01:18]} 37. Qxf4+ {[%emt 0:03:19]} Kg8 {[%emt 0:00:10]} 38. Qc7 {[%emt 0:05:27]} Qb1+ {[%emt 0:00:49]} 39. Kg2 {[%emt 0:02:19]} Qa2 {[%emt 0:00:07]} 40. Qb8+ {[%emt 0:04:56]} Kg7 {[%emt 0:00:47]} 41. Qe5+ {[%emt 0:03:24]} Kf7 {[%emt 0:00:47]} 42. Kf2 {[%emt 0:00:50]} a5 {[%emt 0:00:23]} 43. Qh8 {[%emt 0:00:55]} Qd5 {[%emt 0:00:45]} 44. Qxh7+ {[%emt 0:00:24]} Kf8 {[%emt 0:00:28]} 45. Qh8+ {[%emt 0:02:49]} Kf7 {[%emt 0:00:18]} 46. g5 {[%emt 0:02:25]} Qf5 {[%emt 0:00:10]} 47. e4 {[%emt 0:00:35]} Qf4 {[%emt 0:00:22]} 48. Qh7+ {[%emt 0:05:15]} Kf8 {[%emt 0:00:02]} 49. Qxg6 {[%emt 0:00:16]} Qxh4+ {[%emt 0:00:13]} 50. Kg2 {[%emt 0:00:49]} Ke7 {[%emt 0:01:23]} 51. Qf6+ {[%emt 0:01:04]} Kd7 {[%emt 0:00:35]} 52. Qd4+ {[%emt 0:00:32]} Kc6 {[%emt 0:01:03]} 53. Qc4+ {[%emt 0:00:26]} Kd7 {[%emt 0:00:28]} 54. Qb5+ {[%emt 0:00:14]} Ke7 {[%emt 0:00:20]} 55. Qxa5 {[%emt 0:00:18]} Qf4 {[%emt 0:00:17]} 56. g6 {[%emt 0:03:39]} Kf6 {[%emt 0:00:44]} 57. Qh5 {[%emt 0:00:12]} Qd2+ {[%emt 0:00:32]} 58. Kh3 {[%emt 0:00:09]} Qd7 {[%emt 0:00:38]} 59. e5+ {[%emt 0:00:44]} 1-0

[Event "8th RTU Open 2018"]
[Site "Riga"]
[Date "2018.08.06"]
[Round "1"]
[White "Kreisl, Robert"]
[Black "Leidorf, Sebastian"]
[Result "1-0"]
[ECO "A06"]
[WhiteElo "2404"]
[BlackElo "2119"]
[Annotator "NA"]
[PlyCount "65"]
[EventDate "2018.08.06"]
[EventType "swiss"]
[EventCountry "LAT"]
[SourceTitle "playchess.com"]
[Source "ChessBase"]
[SourceQuality "1"]
[TimeControl "5400+30"]

1. Nf3 {[%emt 0:00:00]} d5 {[%emt 0:00:00]} 2. g3 {[%emt 0:00:00]} e6 {[%emt 0:00:00]} 3. Bg2 {[%emt 0:00:00]} Nf6 {[%emt 0:00:00]} 4. O-O {[%emt 0:00:00]} Be7 {[%emt 0:00:50]} 5. c4 {[%emt 0:00:00]} O-O {[%emt 0:00:31]} 6. b3 {[%emt 0:00:19]} c5 {[%emt 0:01:59]} 7. Bb2 {[%emt 0:00:31]} b6 {[%emt 0:02:09]} 8. e3 {[%emt 0:01:19]} Bb7 {[%emt 0:02:10]} 9. Nc3 {[%emt 0:00:32]} Nbd7 {[%emt 0:02:40]} 10. Qe2 {[%emt 0:02:10]} Rc8 {[%emt 0:01:48]} 11. d3 {[%emt 0:01:21]} Qc7 {[%emt 0:02:49]} 12. Rac1 {[%emt 0:02:54]} Qb8 {[%emt 0:00:33]} 13. Ne1 {[%emt 0:05:48]} dxc4 {[%emt 0:10:13]} 14. bxc4 {[%emt 0:00:51]} Rfd8 {[%emt 0:02:28]} 15. f4 {[%emt 0:01:00]} a6 {[%emt 0:13:24]} 16. a4 {[%emt 0:00:10]} Qa8 {[%emt 0:03:14]} 17. g4 {[%emt 0:01:20]} Bxg2 {[%emt 0:05:43]} 18. Nxg2 {[%emt 0:00:06]} Nb8 {[%emt 0:00:25]} 19. f5 {[%emt 0:10:44]} exf5 {[%emt 0:10:57]} 20. g5 {[%emt 0:07:43]} Ne8 {[%emt 0:05:26]} 21. Rxf5 {[%emt 0:00:35]} Nd6 {[%emt 0:00:37]} 22. Rf3 {[%emt 0:02:03]} Nc6 {[%emt 0:10:39]} 23. Nd5 {[%emt 0:00:24]} Qb7 {[%emt 0:00:18]} 24. Rh3 {[%emt 0:09:37]} Bxg5 {[%emt 0:03:48]} 25. Qg4 {[%emt 0:00:28]} h6 {[%emt 0:05:06]} 26. Nf6+ {[%emt 0:02:53]} Kf8 {[%emt 0:06:58]} 27. Nh7+ {[%emt 0:00:41]} Kg8 {[%emt 0:00:51]} 28. Nxg5 {[%emt 0:01:06]} hxg5 {[%emt 0:00:49]} 29. Qxg5 {[%emt 0:00:53]} Ne8 {[%emt 0:01:43]} 30. Nf4 {[%emt 0:01:13]} Qe7 {[%emt 0:01:11]} 31. Qh5 {[%emt 0:00:45]} f6 {[%emt 0:01:44]} 32. Nd5 {[%emt 0:04:17]} Qe6 {[%emt 0:00:54]} 33. Rf1 {[%emt 0:00:40]} 1-0

[Event "8th RTU Open 2018"]
[Site "Riga"]
[Date "2018.08.06"]
[Round "1"]
[White "Player, Edmund C"]
[Black "Kulaots, Kaido"]
[Result "1/2-1/2"]
[ECO "B40"]
[WhiteElo "2194"]
[BlackElo "2554"]
[Annotator "ChessBase"]
[PlyCount "128"]
[EventDate "2018.08.06"]
[EventType "swiss"]
[EventCountry "LAT"]
[SourceTitle "playchess.com"]
[Source "ChessBase"]
[SourceQuality "1"]
[TimeControl "5400+30"]

1. e4 {[%emt 0:00:00]} c5 {[%emt 0:00:13]} 2. Nf3 {[%emt 0:00:00]} e6 {[%emt 0:00:40]} 3. c3 {[%emt 0:00:00]} d5 {[%emt 0:00:59]} 4. exd5 {[%emt 0:00:33]} Qxd5 {[%emt 0:00:06]} 5. d4 {[%emt 0:00:56]} Nf6 {[%emt 0:00:11]} 6. Na3 {[%emt 0:03:12]} Nc6 {[%emt 0:01:56]} 7. Be2 {[%emt 0:07:44]} Qd8 {[%emt 0:14:14]} 8. Nc2 {[%emt 0:06:56]} Bd6 {[%emt 0:04:01]} 9. dxc5 {[%emt 0:04:22]} Bxc5 {[%emt 0:00:16]} 10. Qxd8+ {[%emt 0:00:33]} Kxd8 {[%emt 0:00:55]} 11. Be3 {[%emt 0:07:43]} Bxe3 {[%emt 0:00:26]} 12. Nxe3 {[%emt 0:00:13]} Ke7 {[%emt 0:00:23]} 13. Rd1 {[%emt 0:03:32]} Bd7 {[%emt 0:01:29]} 14. O-O {[%emt 0:04:35]} Rhc8 {[%emt 0:07:25]} 15. Rfe1 {[%emt 0:05:43]} Rc7 {[%emt 0:09:56]} 16. Nd2 {[%emt 0:19:31]} g5 {[%emt 0:15:00]} 17. Nf3 {[%emt 0:11:47]} h6 {[%emt 0:03:09]} 18. Nd4 {[%emt 0:06:13]} Nxd4 {[%emt 0:00:45]} 19. Rxd4 {[%emt 0:00:09]} Rc5 {[%emt 0:07:17]} 20. Bf3 {[%emt 0:04:00]} Rb8 {[%emt 0:01:21]} 21. c4 {[%emt 0:06:26]} a5 {[%emt 0:00:48]} 22. a3 {[%emt 0:01:36]} a4 {[%emt 0:01:17]} 23. Nd5+ {[%emt 0:02:32]} Nxd5 {[%emt 0:00:07]} 24. cxd5 {[%emt 0:00:40]} b5 {[%emt 0:04:17]} 25. dxe6 {[%emt 0:02:21]} Bxe6 {[%emt 0:00:05]} 26. h3 {[%emt 0:00:48]} Rc2 {[%emt 0:04:37]} 27. Re2 {[%emt 0:00:14]} Rc1+ {[%emt 0:00:53]} 28. Kh2 {[%emt 0:00:03]} Rd8 {[%emt 0:00:19]} 29. Rxd8 {[%emt 0:00:25]} Kxd8 {[%emt 0:00:03]} 30. Re5 {[%emt 0:00:56]} Bc4 {[%emt 0:05:27]} 31. Bc6 {[%emt 0:00:28]} Kc7 {[%emt 0:09:41]} 32. Bxb5 {[%emt 0:00:52]} Kd6 {[%emt 0:01:25]} 33. Rf5 {[%emt 0:00:17]} Bb3 {[%emt 0:00:04]} 34. Rf6+ {[%emt 0:00:25]} Ke5 {[%emt 0:02:02]} 35. Ra6 {[%emt 0:00:25]} Rc2 {[%emt 0:02:16]} 36. Bxa4 {[%emt 0:00:17]} Bxa4 {[%emt 0:00:03]} 37. Rxa4 {[%emt 0:00:04]} Rxb2 {[%emt 0:00:03]} 38. f3 {[%emt 0:01:49]} Ra2 {[%emt 0:00:58]} 39. h4 {[%emt 0:00:25]} gxh4 {[%emt 0:00:26]} 40. Rxh4 {[%emt 0:00:22]} Rxa3 {[%emt 0:00:06]} 41. Rxh6 {[%emt 0:00:04]} f5 {[%emt 0:00:14]} 42. Kg3 {[%emt 0:00:36]} f4+ {[%emt 0:03:22]} 43. Kg4 {[%emt 0:00:22]} Ra2 {[%emt 0:00:10]} 44. g3 {[%emt 0:01:05]} fxg3 {[%emt 0:00:32]} 45. f4+ {[%emt 0:00:31]} Ke4 {[%emt 0:00:32]} 46. Re6+ {[%emt 0:00:18]} Kd5 {[%emt 0:00:10]} 47. Re5+ {[%emt 0:00:03]} Kd6 {[%emt 0:00:02]} 48. Kxg3 {[%emt 0:00:10]} Ra8 {[%emt 0:00:12]} 49. Kg4 {[%emt 0:00:21]} Rg8+ {[%emt 0:00:38]} 50. Rg5 {[%emt 0:00:39]} Ra8 {[%emt 0:00:40]} 51. Re5 {[%emt 0:00:21]} Rg8+ {[%emt 0:00:03]} 52. Rg5 {[%emt 0:00:43]} Ra8 {[%emt 0:00:05]} 53. Rg7 {[%emt 0:00:45]} Ke6 {[%emt 0:01:57]} 54. Kg5 {[%emt 0:00:53]} Rf8 {[%emt 0:00:41]} 55. Rg6+ {[%emt 0:00:22]} Ke7 {[%emt 0:00:27]} 56. Rg7+ {[%emt 0:00:39]} Ke6 {[%emt 0:00:05]} 57. Rg6+ {[%emt 0:00:07]} Ke7 {[%emt 0:00:04]} 58. f5 {[%emt 0:00:19]} Ra8 {[%emt 0:00:45]} 59. Rb6 {[%emt 0:01:10]} Rg8+ {[%emt 0:00:15]} 60. Rg6 {[%emt 0:00:06]} Ra8 {[%emt 0:00:08]} 61. Rg7+ {[%emt 0:00:15]} Kf8 {[%emt 0:00:16]} 62. Rh7 {[%emt 0:00:51]} Kg8 {[%emt 0:00:12]} 63. Rb7 {[%emt 0:00:12]} Ra6 {[%emt 0:00:11]} 64. Rc7 {[%emt 0:00:15]} Rb6 {[%emt 0:00:03]} 1/2-1/2

[Event "8th RTU Open 2018"]
[Site "Riga"]
[Date "2018.08.06"]
[Round "1"]
[White "Krustkalns, Kristaps"]
[Black "Kollars, Dmitrij"]
[Result "0-1"]
[ECO "C77"]
[WhiteElo "2189"]
[BlackElo "2549"]
[Annotator "ChessBase"]
[PlyCount "52"]
[EventDate "2018.08.06"]
[EventType "swiss"]
[EventCountry "LAT"]
[SourceTitle "playchess.com"]
[Source "ChessBase"]
[SourceQuality "1"]
[TimeControl "5400+30"]

1. e4 {[%emt 0:00:00]} e5 {[%emt 0:00:00]} 2. Nf3 {[%emt 0:00:00]} Nc6 {[%emt 0:00:00]} 3. Bb5 {[%emt 0:00:09]} a6 {[%emt 0:00:45]} 4. Ba4 {[%emt 0:00:14]} Nf6 {[%emt 0:00:42]} 5. d3 {[%emt 0:01:06]} d6 {[%emt 0:00:39]} 6. c3 {[%emt 0:01:02]} g6 {[%emt 0:00:16]} 7. O-O {[%emt 0:02:07]} Bg7 {[%emt 0:00:06]} 8. Re1 {[%emt 0:00:53]} O-O {[%emt 0:00:33]} 9. Nbd2 {[%emt 0:01:16]} Re8 {[%emt 0:01:38]} 10. Nf1 {[%emt 0:02:00]} b5 {[%emt 0:02:34]} 11. Bb3 {[%emt 0:04:48]} Na5 {[%emt 0:03:28]} 12. Bc2 {[%emt 0:00:45]} c5 {[%emt 0:00:15]} 13. a4 {[%emt 0:01:20]} Bb7 {[%emt 0:02:35]} 14. Bg5 {[%emt 0:06:32]} h6 {[%emt 0:11:47]} 15. Bh4 {[%emt 0:01:17]} d5 {[%emt 0:05:12]} 16. d4 {[%emt 0:17:02]} g5 {[%emt 0:04:59]} 17. Bg3 {[%emt 0:02:13]} exd4 {[%emt 0:02:03]} 18. e5 {[%emt 0:05:06]} Ne4 {[%emt 0:02:05]} 19. cxd4 {[%emt 0:01:07]} cxd4 {[%emt 0:06:47]} 20. axb5 {[%emt 0:02:56]} axb5 {[%emt 0:01:24]} 21. Nxd4 {[%emt 0:13:22]} Bxe5 {[%emt 0:07:58]} 22. Bxe5 {[%emt 0:04:05]} Rxe5 {[%emt 0:00:04]} 23. f3 {[%emt 0:18:33]} Qb6 {[%emt 0:00:22]} 24. fxe4 {[%emt 0:01:12]} Nc6 {[%emt 0:00:42]} 25. Rxa8+ {[%emt 0:03:08]} Bxa8 {[%emt 0:00:09]} 26. exd5 {[%emt 0:01:52]} Nxd4 {[%emt 0:00:54]} 0-1

[Event "8th RTU Open 2018"]
[Site "Riga"]
[Date "2018.08.06"]
[Round "1"]
[White "Zhuravlev, Stepan"]
[Black "Praggnanandhaa, R."]
[Result "0-1"]
[ECO "D07"]
[WhiteElo "2188"]
[BlackElo "2532"]
[Annotator "ChessBase"]
[PlyCount "120"]
[EventDate "2018.08.06"]
[EventType "swiss"]
[EventCountry "LAT"]
[SourceTitle "playchess.com"]
[Source "ChessBase"]
[SourceQuality "1"]
[TimeControl "5400+30"]

1. d4 {[%emt 0:00:00]} d5 {[%emt 0:00:30]} 2. c4 {[%emt 0:00:00]} Nc6 {[%emt 0:00:06]} 3. cxd5 {[%emt 0:04:56]} Qxd5 {[%emt 0:00:04]} 4. Nf3 {[%emt 0:00:40]} e5 {[%emt 0:02:11]} 5. Nc3 {[%emt 0:08:29]} Bb4 {[%emt 0:00:50]} 6. dxe5 {[%emt 0:06:05]} Qxd1+ {[%emt 0:01:25]} 7. Kxd1 {[%emt 0:00:01]} Bg4 {[%emt 0:04:48]} 8. Kc2 {[%emt 0:11:23]} O-O-O {[%emt 0:13:43]} 9. Bg5 {[%emt 0:18:31]} Re8 {[%emt 0:14:04]} 10. Rd1 {[%emt 0:16:59]} h6 {[%emt 0:05:25]} 11. Bh4 {[%emt 0:04:33]} Nge7 {[%emt 0:05:16]} 12. e3 {[%emt 0:06:09]} Nf5 {[%emt 0:08:27]} 13. Bg3 {[%emt 0:01:04]} Nxg3 {[%emt 0:01:58]} 14. hxg3 {[%emt 0:00:13]} Nxe5 {[%emt 0:00:19]} 15. Be2 {[%emt 0:00:39]} Bf5+ {[%emt 0:13:55]} 16. Kb3 {[%emt 0:03:11]} Bxc3 {[%emt 0:07:10]} 17. Kxc3 {[%emt 0:02:31]} Ng4 {[%emt 0:03:02]} 18. Rhf1 {[%emt 0:04:17]} Nf6 19. Nd4 Bg6 {[%emt 0:03:02]} 20. Bf3 {[%emt 0:00:59]} Re5 {[%emt 0:01:50]} 21. b3 {[%emt 0:00:46]} Rd8 {[%emt 0:02:09]} 22. Kb2 {[%emt 0:01:14]} Rd6 {[%emt 0:02:19]} 23. Ne2 {[%emt 0:02:00]} Rxd1 {[%emt 0:05:44]} 24. Rxd1 {[%emt 0:00:07]} Bh5 {[%emt 0:01:11]} 25. Nf4 {[%emt 0:03:34]} Bg4 {[%emt 0:01:54]} 26. Rd2 {[%emt 0:01:24]} c6 {[%emt 0:00:51]} 27. Rd4 {[%emt 0:00:45]} Bf5 {[%emt 0:00:32]} 28. Ne2 {[%emt 0:00:31]} Kc7 {[%emt 0:00:27]} 29. Nc3 {[%emt 0:00:32]} h5 {[%emt 0:00:45]} 30. Ra4 {[%emt 0:01:40]} a6 {[%emt 0:00:21]} 31. Rd4 {[%emt 0:00:10]} Be6 {[%emt 0:00:33]} 32. Rd1 {[%emt 0:01:04]} g5 {[%emt 0:00:33]} 33. Rd4 {[%emt 0:00:59]} Rf5 {[%emt 0:00:30]} 34. Rd2 {[%emt 0:00:51]} Re5 {[%emt 0:00:31]} 35. Rd4 {[%emt 0:00:10]} c5 {[%emt 0:00:25]} 36. Rd2 {[%emt 0:00:29]} b5 {[%emt 0:00:13]} 37. a3 {[%emt 0:01:02]} Bd7 {[%emt 0:00:51]} 38. Nd5+ {[%emt 0:00:30]} Nxd5 {[%emt 0:00:03]} 39. Rxd5 {[%emt 0:00:13]} Rxd5 {[%emt 0:00:03]} 40. Bxd5 {[%emt 0:00:01]} f6 {[%emt 0:01:01]} 41. Bf3 {[%emt 0:00:16]} h4 {[%emt 0:00:35]} 42. gxh4 {[%emt 0:00:05]} gxh4 {[%emt 0:00:06]} 43. Kc3 {[%emt 0:00:47]} Kd6 {[%emt 0:00:45]} 44. Ba8 {[%emt 0:01:36]} a5 {[%emt 0:00:55]} 45. Be4 {[%emt 0:00:24]} f5 {[%emt 0:00:34]} 46. Bb7 {[%emt 0:00:36]} Be6 {[%emt 0:00:30]} 47. Ba8 {[%emt 0:00:32]} b4+ {[%emt 0:00:30]} 48. axb4 {[%emt 0:00:04]} axb4+ {[%emt 0:00:22]} 49. Kc2 {[%emt 0:00:16]} c4 {[%emt 0:00:34]} 50. bxc4 {[%emt 0:00:26]} Bxc4 {[%emt 0:00:07]} 51. Bb7 {[%emt 0:00:51]} Bd5 {[%emt 0:00:45]} 52. Bxd5 {[%emt 0:00:51]} Kxd5 {[%emt 0:00:02]} 53. Kb3 {[%emt 0:00:33]} Kc5 {[%emt 0:00:58]} 54. f3 {[%emt 0:00:29]} Kb5 {[%emt 0:00:14]} 55. e4 {[%emt 0:00:31]} fxe4 {[%emt 0:00:09]} 56. fxe4 {[%emt 0:00:01]} Kc5 {[%emt 0:00:10]} 57. e5 {[%emt 0:00:08]} Kd5 {[%emt 0:00:08]} 58. Kxb4 {[%emt 0:00:21]} Kxe5 {[%emt 0:00:05]} 59. Kc3 {[%emt 0:00:12]} Kf4 {[%emt 0:00:05]} 60. Kd2 {[%emt 0:00:06]} Kg3 {[%emt 0:00:02]} 0-1

[Event "8th RTU Open 2018"]
[Site "Riga"]
[Date "2018.08.06"]
[Round "1"]
[White "Emdin, Mark"]
[Black "Maiorov, Nikita"]
[Result "1/2-1/2"]
[ECO "C54"]
[WhiteElo "2175"]
[BlackElo "2504"]
[Annotator "ChessBase"]
[PlyCount "94"]
[EventDate "2018.08.06"]
[EventType "swiss"]
[EventCountry "LAT"]
[SourceTitle "playchess.com"]
[Source "ChessBase"]
[SourceQuality "1"]
[TimeControl "5400+30"]

1. e4 e5 {[%emt 0:00:00]} 2. Nf3 {[%emt 0:00:00]} Nc6 {[%emt 0:00:00]} 3. Bc4 {[%emt 0:00:03]} Bc5 {[%emt 0:00:00]} 4. c3 {[%emt 0:00:38]} Nf6 {[%emt 0:00:00]} 5. d3 {[%emt 0:00:09]} d6 {[%emt 0:00:16]} 6. O-O {[%emt 0:00:25]} O-O {[%emt 0:00:36]} 7. Nbd2 {[%emt 0:01:54]} Ne7 {[%emt 0:00:43]} 8. Re1 {[%emt 0:04:31]} Ng6 {[%emt 0:00:19]} 9. Nf1 {[%emt 0:00:16]} c6 {[%emt 0:01:15]} 10. Ng3 {[%emt 0:03:45]} b5 {[%emt 0:00:57]} 11. Bb3 {[%emt 0:00:08]} Bb6 {[%emt 0:00:07]} 12. a4 {[%emt 0:02:25]} Bd7 {[%emt 0:00:16]} 13. axb5 {[%emt 0:03:33]} cxb5 {[%emt 0:00:04]} 14. h3 {[%emt 0:07:00]} Bc6 {[%emt 0:01:47]} 15. d4 {[%emt 0:04:19]} Re8 {[%emt 0:01:54]} 16. dxe5 {[%emt 0:15:43]} dxe5 {[%emt 0:00:31]} 17. Bg5 {[%emt 0:00:58]} h6 {[%emt 0:04:59]} 18. Qxd8 {[%emt 0:03:32]} Bxd8 {[%emt 0:00:07]} 19. Bxf6 {[%emt 0:00:06]} Bxf6 {[%emt 0:00:06]} 20. Nf5 {[%emt 0:03:53]} Bd8 {[%emt 0:14:14]} 21. Rad1 {[%emt 0:09:18]} Bc7 {[%emt 0:05:22]} 22. Bd5 {[%emt 0:06:18]} Bxd5 {[%emt 0:00:26]} 23. Rxd5 {[%emt 0:00:47]} a6 {[%emt 0:06:40]} 24. Rd7 {[%emt 0:01:11]} Bb6 {[%emt 0:01:33]} 25. h4 {[%emt 0:03:59]} Nf8 {[%emt 0:13:13]} 26. Rb7 {[%emt 0:02:16]} Bc5 {[%emt 0:01:17]} 27. b4 {[%emt 0:01:55]} Ra7 {[%emt 0:00:56]} 28. Rxa7 {[%emt 0:05:51]} Bxa7 {[%emt 0:00:04]} 29. Rd1 {[%emt 0:01:06]} Bb8 {[%emt 0:00:15]} 30. Ra1 {[%emt 0:06:57]} Re6 {[%emt 0:00:19]} 31. Nd2 {[%emt 0:00:52]} Kh7 {[%emt 0:10:08]} 32. c4 {[%emt 0:02:12]} bxc4 {[%emt 0:01:27]} 33. Nxc4 {[%emt 0:00:23]} Rc6 {[%emt 0:00:13]} 34. Na5 {[%emt 0:01:54]} Rc2 {[%emt 0:00:57]} 35. Nb7 {[%emt 0:02:35]} Rc4 {[%emt 0:07:39]} 36. Rxa6 {[%emt 0:02:24]} Rxe4 {[%emt 0:08:05]} 37. Ra8 {[%emt 0:02:31]} Rxb4 {[%emt 0:03:15]} 38. Rxb8 {[%emt 0:00:05]} Nd7 {[%emt 0:00:12]} 39. Rd8 {[%emt 0:00:10]} Rxb7 {[%emt 0:00:03]} 40. Nd6 {[%emt 0:00:09]} Rb1+ {[%emt 0:01:04]} 41. Kh2 {[%emt 0:00:07]} Nf6 {[%emt 0:00:23]} 42. Nxf7 {[%emt 0:01:09]} e4 {[%emt 0:02:02]} 43. Rd2 {[%emt 0:01:56]} Kg6 {[%emt 0:01:53]} 44. Nd6 {[%emt 0:00:43]} Kh5 {[%emt 0:02:38]} 45. Re2 {[%emt 0:01:19]} Kxh4 {[%emt 0:01:53]} 46. g3+ {[%emt 0:00:32]} Kh5 {[%emt 0:02:15]} 47. Nxe4 {[%emt 0:00:13]} Nxe4 {[%emt 0:00:41]} 1/2-1/2